Workbook

Sheet Multi Year- Hybrid Fees
C2: Assumptions | E2: Variables
C3: Capital Contribution (Rs.) | D3: a | E3: 10,000,000
C4: Fixed Management Fees (%age per annum) | D4: b | E4: 1.50%
C5: Other Expenses (%age per annum) | D5: c | E5: 0.15%
C6: Performance Fee (%age per annum) | D6: d | E6: 12.00%
C7: Hurdle Rate of Return (%age per annum) | D7: e | E7: 10.00%
C8: Brokerage and Transaction Cost | D8: f | E8: 0.20%
C10: Fees | F10: Yr 1 | H10: Yr 2 | J10: Yr 3 | L10: Yr 4 | N10: Yr 5 | P10: Yr 6
F11: Gain / (Loss) | G11: -30.00% | H11: Gain / (Loss) | I11: 10.00% | J11: Gain / (Loss) | K11: -1.00% | L11: Gain / (Loss) | M11: 110.00% | N11: Gain / (Loss) | O11: 30.00% | P11: Gain / (Loss) | Q11: 15.00%
C12: Capital Contributed / Assets under Management | D12: i | F12: =E3 -> 10,000,000 | H12: =F33 -> 6,842,750 | J12: =H33 -> 7,394,105 | L12: =J33 -> 7,184,057 | N12: =L33 -> 14,851,774 | P12: =N33 -> 18,672,809
C13: Gain / (Loss) on Investment based on the Scenario | D13: ii | F13: =F12*G11 -> -3,000,000 | H13: =H12*I11 -> 684,275 | J13: =J12*K11 -> -73,941 | L13: =L12*M11 -> 7,902,462 | N13: =N12*O11 -> 4,455,532 | P13: =P12*Q11 -> 2,800,921
C14: Gross Value of the Portfolio at the end of the year | D14: iii | F14: =SUM(F12:G13) -> 7,000,000 | H14: =SUM(H12:I13) -> 7,527,025 | J14: =SUM(J12:K13) -> 7,320,164 | L14: =SUM(L12:M13) -> 15,086,519 | N14: =SUM(N12:O13) -> 19,307,306 | P14: =SUM(P12:Q13) -> 21,473,730
C16: Daily Weighted Average of Assets under Management | D16: iv | F16: =(F12+F14)/2 -> 8,500,000 | H16: =(H12+H14)/2 -> 7,184,888 | J16: =(J12+J14)/2 -> 7,357,134 | L16: =(L12+L14)/2 -> 11,135,288 | N16: =(N12+N14)/2 -> 17,079,540 | P16: =(P12+P14)/2 -> 20,073,269
C18: Fixed Management Fees | D18: v | F18: =F16*$E$4 -> 127,500 | H18: =H16*$E$4 -> 107,773 | J18: =J16*$E$4 -> 110,357 | L18: =L16*$E$4 -> 167,029 | N18: =N16*$E$4 -> 256,193 | P18: =P16*$E$4 -> 301,099
C19: Other Expenses | D19: vi | F19: =F16*$E$5 -> 12,750 | H19: =H16*$E$5 -> 10,777 | J19: =J16*$E$5 -> 11,036 | L19: =L16*$E$5 -> 16,703 | N19: =N16*$E$5 -> 25,619 | P19: =P16*$E$5 -> 30,110
C20: Brokerage and Transaction Cost | D20: viii | F20: =F16*$E$8 -> 17,000 | H20: =H16*$E$8 -> 14,370 | J20: =J16*$E$8 -> 14,714 | L20: =L16*$E$8 -> 22,271 | N20: =N16*$E$8 -> 34,159 | P20: =P16*$E$8 -> 40,147
C21: Total Charges during the year (Sum of v, vi and vii) | D21: viii | F21: =SUM(F18:G20) -> 157,250 | H21: =SUM(H18:I20) -> 132,920 | J21: =SUM(J18:K20) -> 136,107 | L21: =SUM(L18:M20) -> 206,003 | N21: =SUM(N18:O20) -> 315,971 | P21: =SUM(P18:Q20) -> 371,355
C23: Value of the Portfolio before Performance Fee | D23: ix | F23: =F14-F21 -> 6,842,750 | H23: =H14-H21 -> 7,394,105 | J23: =J14-J21 -> 7,184,057 | L23: =L14-L21 -> 14,880,516 | N23: =N14-N21 -> 18,991,335 | P23: =P14-P21 -> 21,102,375
C24: High Water Mark (HWM) Value of this Year | D24: x | F24: =IF($E$6>0, F12,0) -> 10,000,000 | H24: =IF($E$6>0, F36,0) -> 10,000,000 | J24: =IF($E$6>0, H36,0) -> 10,000,000 | L24: =IF($E$6>0, J36,0) -> 10,000,000 | N24: =IF($E$6>0, L36,0) -> 14,851,774 | P24: =IF($E$6>0, N36,0) -> 18,672,809
C25: Hurdle Value after adding Hurdle Rate of Return | D25: xi | F25: =F24+(F24*E7) -> 11,000,000 | H25: =IF(F30=0, (F25+(F25*$E$7)), (H24+(H24*$E$7))) -> 12,100,000 | J25: =IF(H30=0, (H25+(H25*$E$7)), (J24+(J24*$E$7))) -> 13,310,000 | L25: =IF(J30=0, (J25+(J25*$E$7)), (L24+(L24*$E$7))) -> 14,641,000 | N25: =IF(L30=0, (L25+(L25*$E$7)), (N24+(N24*$E$7))) -> 16,336,951 | P25: =IF(N30=0, (N25+(N25*$E$7)), (P24+(P24*$E$7))) -> 20,540,090
C27: Portfolio Value in excess of Hurdle Value | D27: xii | F27: =F23-F25 -> -4,157,250 | H27: =H23-H25 -> -4,705,895 | J27: =J23-J25 -> -6,125,943 | L27: =L23-L25 -> 239,516 | N27: =N23-N25 -> 2,654,383 | P27: =P23-P25 -> 562,285
C28: Portfolio Value on which Performance Fee is Charged | D28: xiii | F28: =IF(F27<0, 0, F27) -> 0 | H28: =IF(H27<0, 0, H27) -> 0 | J28: =IF(J27<0, 0, J27) -> 0 | L28: =IF(L27<0, 0, L27) -> 239,516 | N28: =IF(N27<0, 0, N27) -> 2,654,383 | P28: =IF(P27<0, 0, P27) -> 562,285
C29: Profit Share of the PMS | D29: xiv | F29: =IF($E$6>0, F28*$E$6, 0) -> 0 | H29: =IF($E$6>0, H28*$E$6, 0) -> 0 | J29: =IF($E$6>0, J28*$E$6, 0) -> 0 | L29: =IF($E$6>0, L28*$E$6, 0) -> 28,742 | N29: =IF($E$6>0, N28*$E$6, 0) -> 318,526 | P29: =IF($E$6>0, P28*$E$6, 0) -> 67,474
C30: Performance Fee (Profit Share to be taken by PMS) | D30: xv | F30: =F29 -> 0 | H30: =H29 -> 0 | J30: =J29 -> 0 | L30: =L29 -> 28,742 | N30: =N29 -> 318,526 | P30: =P29 -> 67,474
C31: Is the Performance Fee charged? | D31: xvi | F31: =IF(F29>0,"Yes","No") -> No | H31: =IF(H29>0,"Yes","No") -> No | J31: =IF(J29>0,"Yes","No") -> No | L31: =IF(L29>0,"Yes","No") -> Yes | N31: =IF(N29>0,"Yes","No") -> Yes | P31: =IF(P29>0,"Yes","No") -> Yes
C33: Net Value of the Portfolio at the end of the year after all Fees and Expenses | D33: xvii | F33: =F23-F30 -> 6,842,750 | H33: =H23-H30 -> 7,394,105 | J33: =J23-J30 -> 7,184,057 | L33: =L23-L30 -> 14,851,774 | N33: =N23-N30 -> 18,672,809 | P33: =P23-P30 -> 21,034,900
C34: % Portfolio Return | D34: xviii | F34: =(F33-F12)/F12 -> -31.57% | H34: =(H33-H12)/H12 -> 8.06% | J34: =(J33-J12)/J12 -> -2.84% | L34: =(L33-L12)/L12 -> 106.73% | N34: =(N33-N12)/N12 -> 25.73% | P34: =(P33-P12)/P12 -> 12.65%
C36: High Water Mark (HMW) Value to be Carried Forward for Next Year | D36: xix | F36: =IF(F30=0, F24, F33) -> 10,000,000 | H36: =IF(H30=0, H24, H33) -> 10,000,000 | J36: =IF(J30=0, J24, J33) -> 10,000,000 | L36: =IF(L30=0, L24, L33) -> 14,851,774 | N36: =IF(N30=0, N24, N33) -> 18,672,809 | P36: =IF(P30=0, P24, P33) -> 21,034,900
B38: Notes:
B39: 1 | C39: Brokerage and transaction costs are applied on the basis of actual trades, not on average AUM. However, for the purpose of this illustration, the annualized assumption is shown based on Average AUM.
B40: =+B39+1 -> 2 | C40: The illustration assumes the Fixed Management Fees is charged on an annual rate but calculated quarterly on average AUM, in line with the PMS agreement. Performance fees are charged annually.
B41: 3 | C41: Fixed Management Fees are calculated quarterly on the daily weighted average AUM during the quarter, as per the PMS agreement.
B42: 4 | C42: Returns in this illustration are assumed to be realized linearly across the year.
B43: 5 | C43: Other Charges include custodian and depository charges, fund accounting charges, audit fees and other administrative charges which are directly attributable to the portfolio management services in respect of the Client. In addition to the above fee, the Client would also pay to the Portfolio Manager such other incidental charges incurred by the Portfolio Manager on Client’s behalf on actual basis, statutory levies such as Goods & Service Tax and such other expenses incurred in respect of the investment made under this Agreement including all amendment/addition thereto which shall be debited to the Clients as and when the same becomes payable as per the provisions of this Agreement.
B44: 6 | C44: All fees and charges are subject to applicable GST.
B45: 7 | C45: The High Water Mark for the first year is the initial capital invested. From the second year onward, if performance fees are charged, the year-end post-fee portfolio value becomes the new High Water Mark. Otherwise, it carries forward from the last applicable High Water Mark.
B46: 8 | C46: A hurdle rate is applied over the greater of the prior year's High Water Mark or year-end NAV to compute the minimum return required before charging performance fees.
B47: 9 | C47: The hurdle rate is prorated in case the fee period is less than a year or if there are any portfolio inflows/outflows.
B48: 10 | C48: The High Water Mark is adjusted annually in this illustration to ensure fair and consistent treatment of investors.
B49: 11 | C49: This illustration is a generic example and subject to modification by the Portfolio Manager as per the PMS agreement terms.
